bitfinex/quotes_ETHUSD_20251221
["timestamp","ask_amount","ask_price","bid_price","bid_amount"]
[1766313406411,0.002,3002.1,3000.6,3.33266466]
[1766313406608,0.002,3002.1,3001.2,2.5125]
[1766313406811,0.002,3002.1,3001.3,5.3198]
[1766313407114,10.50600911,3002.1,3001.3,5.3198]
[1766313407624,7.175,3002.1,3001.3,2.9465]
[1766313407921,0.002,3002.6,3002.0,2.3733]
[1766313408119,0.002,3002.6,3002.1,4.8955]
[1766313408424,0.002,3003.5,3002.2,0.01676172]
[1766313408725,0.002,3003.5,3002.8,2.3733]
[1766313408903,0.002,3003.5,3002.9,2.3733]
[1766313409286,0.002,3003.5,3002.9,5.4367]
[1766313409691,0.001,3003.0,3002.9,0.5337]
[1766313409923,0.001,3003.0,3002.6,0.434]
[1766313410424,7.173,3003.4,3002.6,5.3525]
[1766313411326,7.173,3002.9,3001.8,2.5604]
[1766313411648,7.173,3002.9,3001.4,0.29465]
[1766313411649,0.01001067,3003.0,3001.5,6.9804]
[1766313411791,0.01001067,3003.0,3001.6,9.7877]
[1766313411792,0.01001067,3002.8,3001.6,9.7877]
[1766313411991,0.01001067,3002.8,3001.7,0.434]
[1766313412230,0.01001067,3002.6,3001.7,0.434]
[1766313412525,3.33055786,3002.5,3001.7,0.434]
[1766313412698,0.66710173,3002.4,3001.7,0.434]
[1766313413221,0.6771124,3002.4,3001.5,2.3733]
[1766313413630,7.8501124,3002.4,3001.5,2.3733]
[1766313413839,9.5577,3002.1,3001.3,0.434]
[1766313414048,0.95577,3002.0,3001.4,9.3537]
[1766313414253,10.2348124,3002.4,3001.4,6.9804]
[1766313414565,3.33077973,3002.3,3001.5,2.3733]
[1766313414715,12.88847973,3002.3,3001.5,2.3733]
[1766313415346,9.5577,3002.2,3001.5,2.3733]
[1766313416637,3.33100163,3002.1,3001.5,2.3733]
[1766313416838,4.95294977,3002.1,3001.5,2.3733]
[1766313417749,1.62194814,3002.1,3001.5,2.3733]
[1766313418512,0.66910173,3002.4,3001.7,9.3537]
[1766313418729,0.002,3002.4,3001.8,2.8073]
[1766313419140,0.002,3002.4,3001.8,7.4144]
[1766313419447,2.3847,3002.9,3002.2,2.3733]
[1766313419665,7.173,3003.0,3002.3,0.434]
[1766313419960,12.88771695,3003.0,3002.3,0.434]
[1766313420160,11.18045907,3003.0,3002.3,2.8073]
[1766313420327,0.03489007,3002.9,3001.4,6.9804]
[1766313420518,7.173,3002.6,3001.7,2.3733]
[1766313420721,3.35543865,3002.5,3001.7,2.3733]
[1766313420921,7.173,3002.4,3001.8,0.434]
[1766313421123,1.62275907,3003.0,3002.0,6.9804]
[1766313421449,9.5597,3003.5,3002.8,2.3733]
[1766313421620,3.33145359,3003.5,3002.7,0.434]
[1766313421823,0.002,3003.5,3002.9,2.3733]
[1766313422150,0.002,3003.5,3002.9,9.3537]
[1766313422322,0.002,3003.5,3002.9,10.33247]
[1766313423450,0.002,3003.5,3002.1,3.33097353]
[1766313423451,7.175,3003.5,3002.1,6.9804]
[1766313423649,7.175,3003.5,3002.2,2.3733]
[1766313423650,7.173,3003.1,3002.2,2.3733]
[1766313423848,9.5577,3003.1,3002.2,9.7877]
[1766313424849,2.3847,3003.1,3002.2,9.7877]
[1766313425041,0.01001067,3003.0,3001.8,3.46007]
[1766313425241,9.9278,3002.7,3001.9,0.434]
[1766313426244,0.03489007,3002.6,3001.8,0.001]
[1766313426432,2.6066,3002.2,3001.8,0.001]
[1766313426636,0.01001067,3002.6,3001.6,0.434]
[1766313426941,6.66067206,3002.7,3001.6,0.434]
[1766313427141,0.72037894,3002.6,3001.6,0.434]
[1766313427354,0.72037894,3002.6,3001.2,9.8814]
[1766313427525,0.01001067,3002.2,3000.9,9.8814]
[1766313427730,0.01001067,3002.0,3001.0,0.434]
[1766313427950,0.01001067,3002.0,3000.9,9.8814]
[1766313428148,0.01001067,3002.0,3001.0,0.434]
[1766313428350,0.01001067,3002.2,3001.0,0.434]
[1766313428858,2.6066,3002.0,3001.0,0.434]
[1766313429127,3.3311551,3002.0,3001.2,2.4803]
[1766313429352,3.3311551,3002.0,3001.3,9.8814]
[1766313429530,3.3311551,3002.0,3001.4,1.42214]
[1766313430454,3.3311551,3002.0,3001.4,11.30354]
[1766313430960,13.9835102,3002.0,3001.4,1.42214]
[1766313431135,2.6066,3001.9,3001.2,0.434]
[1766313431333,7.3212,3001.8,3001.0,2.4803]
[1766313431652,9.9278,3001.8,3001.0,2.9143]
[1766313431856,9.9278,3001.8,3001.0,3.20573]
[1766313432425,9.9278,3001.8,3001.0,3.20673]
[1766313433059,3.33144551,3001.7,3001.0,3.20673]
[1766313433258,3.33111259,3002.0,3001.2,2.4803]
[1766313433446,3.33111259,3002.0,3001.5,9.8814]
[1766313433651,3.33111259,3002.0,3001.5,10.86954]
[1766313433950,3.33111259,3002.0,3001.0,0.29243]
[1766313433951,0.98813999,3001.4,3001.0,0.29243]
[1766313434151,0.98813999,3001.4,3001.1,0.434]
[1766313434349,0.98813999,3001.4,3001.0,0.001]
[1766313434531,0.98813999,3001.4,3001.0,0.435]
[1766313434732,0.98813999,3001.4,3001.0,2.9153]
[1766313435558,0.98813999,3001.4,3001.1,2.4803]
[1766313435757,0.98813999,3001.4,3001.1,3.51194]
[1766313437959,3.33122355,3001.9,3001.2,2.4803]
[1766313438161,6.66246726,3001.9,3001.1,8.43274]
[1766313438351,7.3212,3001.8,3001.1,7.4011]
[1766313438751,7.3212,3001.8,3001.0,0.435]
[1766313438951,0.01001067,3001.7,3000.5,2.9153]
[1766313439136,7.3212,3001.3,3000.5,2.9153]
[1766313439333,3.33200053,3001.2,3000.5,2.9153]
[1766313439657,3.33200053,3001.2,3000.5,3.94694]
[1766313439860,9.9278,3001.3,3000.5,3.94694]
[1766313440167,3.76400163,3002.1,3001.4,7.4011]
[1766313440346,7.09509423,3002.1,3001.4,9.8814]
[1766313440541,0.433,3002.1,3001.4,7.4011]
[1766313440749,0.71036827,3002.6,3001.6,9.8814]
[1766313440750,0.433,3002.4,3001.6,9.8814]
[1766313441160,7.7542,3002.4,3001.6,9.8814]
[1766313441365,9.9278,3002.3,3001.6,2.4803]
[1766313441572,16.58946391,3002.3,3001.6,2.4803]
[1766313441774,10.65197973,3002.3,3001.6,9.8814]
[1766313441936,6.66166391,3002.3,3001.7,2.4803]
[1766313442136,7.3212,3002.2,3001.3,9.8814]
[1766313442362,9.26826391,3002.3,3001.5,9.8814]
[1766313442363,3.33077973,3002.3,3001.5,9.8814]
[1766313442676,9.9278,3002.2,3001.4,0.434]
[1766313442839,9.9278,3002.2,3001.5,0.29143]
[1766313443037,9.9278,3002.2,3001.5,2.77173]
[1766313443554,3.33100163,3002.1,3001.5,10.17283]
[1766313444345,6.66200326,3002.1,3001.5,10.17283]
[1766313445363,3.33100163,3002.1,3001.5,10.17283]
[1766313445676,3.33100163,3002.1,3001.6,1.060683]
[1766313446279,6.66200326,3002.1,3001.6,1.060683]
[1766313446852,3.33100163,3002.1,3001.7,2.5362]
[1766313447042,3.33100163,3002.1,3001.7,9.9704]
[1766313447956,6.66155946,3002.3,3001.7,6.63367005]
[1766313448156,6.66155946,3002.3,3001.7,3.29694125]
[1766313448355,6.66155946,3002.3,3001.7,1e-08]
[1766313448553,8.38221541,3002.3,3000.7,5.66337541]
[1766313448761,7.7344,3002.2,3000.8,0.434]
[1766313448980,0.002,3002.1,3000.8,0.434]
[1766313449150,0.002,3002.1,3000.9,0.60973754]
[1766313449360,0.002,3002.1,3000.8,0.434]
[1766313449940,0.0268794,3002.1,3000.9,2.5362]
[1766313450173,0.002,3002.1,3001.0,2.9702]
[1766313450371,10.112,3001.8,3001.0,2.9702]
[1766313450938,7.7344,3001.7,3001.0,2.9702]
[1766313451139,7.7344,3001.6,3001.0,1e-08]
[1766313451971,3.33166749,3001.5,3001.0,1e-08]
[1766313452637,3.33166749,3001.5,3000.9,7.4342]
[1766313452874,11.0660046,3001.6,3000.9,7.4342]
[1766313453063,3.3316046,3001.6,3000.9,8.22102]
[1766313453267,3.3316046,3001.6,3001.0,7.4342]
[1766313453572,3.3316046,3001.6,3001.0,9.7257]
[1766313454170,3.3316046,3001.6,3000.7,10.1597]
[1766313454171,10.112,3001.5,3000.7,10.1597]
[1766313454373,10.112,3001.5,3000.7,11.17577]
[1766313454674,7.7344,3001.5,3000.7,10.74177]
[1766313454875,10.112,3001.4,3000.7,9.7257]
[1766313455279,7.0962092,3001.6,3000.5,0.435]
[1766313455478,9.7114092,3001.6,3000.8,7.4664]
[1766313455776,17.4554092,3001.6,3000.8,7.4664]
[1766313456276,10.3592,3001.5,3000.8,7.4664]
[1766313457780,0.002,3001.4,3000.8,7.4664]
[1766313458481,3.3337785,3001.4,3000.8,7.4664]
[1766313458660,13.6929785,3001.4,3000.8,7.4664]
[1766313458845,10.3592,3001.3,3000.5,10.1929]
[1766313459785,10.3592,3001.2,3000.5,9.7589]
[1766313459942,10.3592,3001.1,3000.5,0.001]
[1766313460147,10.3592,3001.1,3000.5,9.7589]
[1766313460148,1.07922,3001.1,3000.5,9.7589]
[1766313460375,0.433,3001.2,3000.5,2.2925]
[1766313460552,3.33211155,3001.1,3000.6,9.7579]
[1766313461346,6.6642231,3001.1,3000.5,0.001]
[1766313461681,10.3592,3001.0,3000.5,0.001]
[1766313461898,2.6400794,3000.9,3000.2,4.12891236]
[1766313462067,9.99633465,3001.1,3000.1,2.2915]
[1766313462068,6.6642231,3001.1,3000.1,2.2915]
[1766313462462,3.33211155,3001.1,3000.1,2.2915]
[1766313462663,6.6642231,3001.1,3000.1,2.2915]
[1766313462865,6.6642231,3001.1,3000.3,2.2915]
[1766313463985,6.6642231,3001.1,3000.4,6.2857]
[1766313464188,6.6642231,3001.1,3000.5,8.5772]
[1766313464687,6.6642231,3001.1,3000.5,5.23922612]
[1766313464983,6.6642231,3001.1,3000.5,1e-08]
[1766313465175,7.63546541,3001.1,3000.5,1e-08]
[1766313465589,7.63546541,3001.1,3000.2,0.434]
[1766313465979,6.6642231,3001.1,3000.2,0.434]
[1766313467878,0.433,3001.2,3000.2,0.434]
[1766313468171,0.002,3001.4,3000.2,0.434]
[1766313468568,3.33378055,3001.4,3000.2,0.434]
[1766313469298,3.33378055,3001.4,3000.3,0.434]
[1766313469299,10.3592,3001.3,3000.3,0.434]
[1766313471206,0.002,3001.4,3000.3,0.434]
[1766313473703,0.002,3001.4,3000.3,0.46733]
[1766313474295,0.002,3001.4,3000.3,0.434]
[1766313474831,0.002,3001.4,3000.4,0.03332888]
[1766313475108,0.002,3001.4,3000.3,0.435]
[1766313476199,0.002,3001.4,3000.4,0.37680627]
[1766313476409,0.002,3001.4,3000.3,0.435]
[1766313479007,0.002,3001.4,3000.3,3.76796917]
[1766313480079,0.433,3002.0,3000.4,35.96012542]
[1766313480387,0.433,3002.0,3000.5,30.0]
[1766313480589,0.433,3002.0,3000.5,20.76529]
[1766313480795,0.433,3002.0,3000.7,18.546547]
[1766313480997,0.002,3002.1,3001.0,30.0]
[1766313481383,0.002,3002.1,3000.9,5.92679654]
[1766313481384,0.002,3002.1,3001.1,0.434]
[1766313482017,0.002,3002.1,3001.1,3.76610565]
[1766313483203,0.002,3002.1,3001.1,0.434]
[1766313483404,0.002,3002.1,3001.2,0.37662043]
[1766313483606,0.002,3002.1,3001.1,0.434]
[1766313484121,0.002,3002.1,3001.1,7.0982223]
[1766313484308,0.002,3002.1,3001.1,3.76611075]
[1766313485201,0.002,3002.1,3001.1,0.434]
[1766313485822,0.002,3002.1,3001.1,3.7660993]
[1766313486127,0.002,3002.1,3001.1,0.434]
[1766313486421,0.002,3002.1,3001.2,0.37661471]
[1766313486641,0.002,3002.1,3001.3,0.03331889]
[1766313487321,0.002,3002.1,3001.2,0.37661471]
[1766313487724,0.002,3002.1,3001.3,5.95639588]
[1766313487898,0.002,3002.7,3001.4,30.0]
[1766313488095,0.002,3002.7,3001.5,3.41565051]
[1766313488323,0.002,3002.7,3001.6,0.434]
[1766313490713,0.002,3002.7,3001.6,3.76554569]
[1766313490912,0.002,3002.7,3001.7,0.03331445]
[1766313491223,0.002,3002.7,3001.6,7.09710219]
[1766313491420,0.002,3002.7,3001.7,30.0]
[1766313491610,0.002,3002.7,3001.8,3.41565051]
[1766313491813,0.002,3002.7,3001.7,30.0]
[1766313492016,0.002,3002.7,3001.8,5.92307699]
[1766313492621,0.002,3002.7,3001.9,0.434]
[1766313493537,0.002,3002.7,3002.0,0.03331112]
[1766313493826,0.002,3002.7,3001.9,0.434]
[1766313494025,0.002,3002.7,3002.0,0.96883815]
[1766313494801,0.002,3002.7,3002.1,0.03331001]
[1766313495217,0.002,3003.1,3002.0,7.63099992]
[1766313498043,0.002,3003.1,3002.0,10.96211251]
[1766313498242,0.002,3003.4,3002.4,30.0]
[1766313498442,0.002,3003.4,3002.5,3.84965051]
[1766313498612,0.002,3003.4,3002.5,0.434]
[1766313499117,0.002,3003.4,3002.6,30.03330446]
[1766313499447,0.002,3003.1,3002.7,3.33033603]
[1766313499747,0.002,3003.5,3002.7,3.33033603]
[1766313501013,0.002,3003.5,3002.7,6.66067206]
[1766313501206,0.002,3003.5,3002.8,0.66606721]
[1766313501410,0.002,3003.5,3002.9,0.434]
[1766313503441,0.002,3003.5,3003.0,0.434]
[1766313505944,0.002,3003.5,3002.9,0.434]
[1766313506542,0.002,3003.8,3002.9,0.434]
[1766313506851,0.002,3004.1,3002.9,0.434]
[1766313506852,0.002,3004.1,3003.6,5.92307699]
[1766313507039,0.002,3004.1,3003.7,1.0263077]
[1766313507226,0.002,3004.1,3003.8,0.434]
[1766313507912,0.002,3004.1,3003.1,3.32989244]
[1766313508118,0.002,3004.1,3003.2,0.434]
[1766313508317,0.002,3004.1,3003.1,3.32989244]
[1766313508556,0.002,3004.1,3003.2,0.78698924]
[1766313508857,0.002,3004.1,3003.2,4.11676977]
[1766313509649,0.002,3004.1,3003.3,0.434]
[1766313509856,0.002,3004.1,3003.2,3.68276977]
[1766313510011,0.002,3004.1,3003.4,0.434]
[1766313511767,0.002,3004.1,3003.4,3.76354507]
[1766313511978,0.002,3004.1,3003.5,0.37635451]
[1766313512254,0.002,3004.1,3003.5,0.40964899]
[1766313512627,0.002,3004.1,3003.5,0.37635451]
[1766313514030,0.002,3004.1,3003.6,0.433]
[1766313517336,0.002,3004.1,3002.8,0.01001067]
[1766313517632,0.002,3004.1,3003.0,3.3299316]
[1766313517836,0.002,3004.1,3003.1,0.433]
[1766313519041,0.002,3004.1,3003.1,3.76289084]
[1766313519266,0.002,3004.1,3003.2,0.37628908]
[1766313521042,0.002,3004.1,3003.2,3.70603943]
[1766313521758,0.002,3004.1,3003.2,7.03582099]
[1766313521965,0.002,3004.1,3003.4,30.0]
[1766313522149,0.002,3004.1,3003.5,0.46629448]
[1766313522329,0.002,3004.1,3003.5,0.433]
[1766313523433,0.002,3004.1,3003.6,0.37625451]
[1766313524669,0.002,3004.1,3003.5,0.433]
[1766313524849,0.002,3004.1,3003.6,0.433]
[1766313525050,0.002,3004.1,3003.7,0.433]
[1766313525569,0.002,3004.1,3003.8,0.433]
[1766313526873,0.002,3004.1,3003.0,3.33095067]
[1766313527069,0.002,3004.1,3003.1,1.09910499]
[1766313527569,0.002,3004.1,3003.1,0.66610499]
[1766313527761,9.9279,3004.1,3003.2,0.433]
[1766313528336,0.002,3004.1,3003.2,0.433]
[1766313529037,0.002,3004.1,3003.5,0.001]
[1766313530053,0.002,3004.1,3003.5,0.33406707]
[1766313531799,0.002,3004.1,3003.6,0.433]
[1766313531965,0.002,3004.1,3003.6,0.46629338]
[1766313532140,0.002,3004.1,3003.6,0.433]
[1766313532346,0.002,3004.1,3003.6,3.76229848]
[1766313532673,0.002,3004.1,3003.7,0.40963655]
[1766313533057,0.002,3004.1,3003.8,0.433]
[1766313534557,0.002,3004.4,3003.8,3.76208947]
[1766313534781,0.002,3004.4,3003.8,0.433]
[1766313538081,0.002,3004.1,3003.8,0.433]
[1766313538584,0.002,3004.1,3003.6,3.32931966]
[1766313538790,0.002,3004.1,3003.7,0.79933867]
[1766313538959,0.002,3004.1,3003.7,0.433]
[1766313539364,0.002,3004.1,3003.8,4.14144966]
[1766313540784,0.002,3004.1,3003.5,4.14244966]
[1766313540973,0.002,3004.1,3003.8,0.433]
[1766313546189,0.002,3004.4,3004.0,4.14144966]
[1766313546397,0.002,3004.4,3004.1,0.41414497]
[1766313548404,0.002,3004.8,3004.2,4.57444966]
[1766313548565,0.002,3004.8,3004.2,0.433]
[1766313557799,0.002,3005.4,3004.7,8.28123128]
[1766313557998,0.002,3006.1,3005.3,4.14061564]
[1766313558198,0.002,3006.1,3005.5,4.14061564]
[1766313558597,0.002,3006.1,3005.3,4.14061564]
[1766313559216,0.002,3006.1,3005.2,0.433]
[1766313559531,0.002,3006.1,3005.3,4.14061564]
[1766313559834,9.7698,3006.0,3005.4,0.45736156]
[1766313560032,9.7698,3005.9,3005.3,0.433]
[1766313560205,9.7698,3005.9,3004.8,0.82812313]
[1766313560529,9.7698,3005.9,3004.9,4.14061564]
[1766313560737,9.7698,3005.9,3004.9,5.40328866]
[1766313561304,9.7698,3005.9,3004.9,4.97028866]
[1766313561632,9.7718,3005.9,3005.0,0.433]
[1766313562832,9.7698,3005.8,3004.7,4.14061564]
[1766313563036,0.002,3005.9,3005.0,0.433]
[1766313564300,9.7718,3005.9,3005.0,0.433]
[1766313565030,0.002,3005.9,3005.0,0.433]
[1766313565237,9.8778,3005.8,3005.0,0.433]
[1766313565635,4.14061564,3005.5,3004.4,3.32840682]
[1766313565843,4.14061564,3005.5,3004.5,0.76584068]
[1766313566142,0.0248794,3005.5,3004.6,0.433]
[1766313566708,14.01841564,3005.6,3004.5,0.33284068]
[1766313567027,14.01841564,3005.6,3004.6,0.433]
[1766313567228,11.61234931,3005.5,3004.6,0.433]
[1766313568236,9.8778,3005.5,3004.6,0.433]
[1766313568440,14.8085483,3005.8,3004.5,7.80177578]
[1766313568635,14.8085483,3005.8,3004.6,0.433]
[1766313568935,0.002,3005.9,3004.9,4.14061564]
[1766313569147,0.002,3005.9,3005.2,4.14061564]
[1766313569317,0.002,3005.5,3005.0,0.433]
[1766313570215,0.002,3005.5,3005.2,4.14061564]
[1766313570415,0.002,3005.9,3005.3,4.14061564]
[1766313570615,0.002,3005.9,3005.4,0.84706156]
[1766313571556,0.002,3005.9,3005.4,0.880335]
[1766313571739,0.002,3005.9,3005.5,4.14061564]
[1766313572922,0.002,3005.9,3005.6,0.433]
[1766313577665,0.002,3005.9,3005.5,0.433]
[1766313577876,4.14261564,3005.9,3004.5,0.53284068]
[1766313578172,14.04441564,3005.7,3005.3,0.001]
[1766313578535,15.4490572,3005.7,3005.3,0.001]
[1766313580167,11.30844156,3005.7,3005.3,0.001]
[1766313580489,0.002,3005.9,3005.3,0.001]
[1766313580978,0.002,3005.9,3005.3,4.14161564]
[1766313582263,0.002,3005.9,3005.5,4.14061564]
[1766313582434,0.002,3005.9,3005.6,0.433]
[1766313582640,0.002,3005.9,3005.7,0.45736156]
[1766313583670,0.002,3005.9,3005.6,0.433]
[1766313584869,0.002,3005.9,3005.3,0.001]
[1766313593546,9.9058,3005.9,3005.3,0.001]
[1766313596255,9.9038,3005.7,3005.3,0.001]
[1766313596974,0.002,3005.9,3005.3,0.001]
[1766313597461,0.33505693,3005.9,3005.3,0.001]
[1766313600076,3.66186648,3005.9,3005.3,0.001]
[1766313600279,6.98867603,3005.9,3005.3,0.001]
[1766313600455,9.9038,3005.7,3005.3,0.001]
[1766313601052,0.002,3005.9,3005.3,0.001]
[1766313602167,9.9038,3005.8,3005.3,0.001]
[1766313602363,7.4228,3005.8,3005.3,0.001]
[1766313602764,9.9038,3005.6,3005.3,0.001]
[1766313603169,7.4228,3005.2,3004.2,0.001]
[1766313603372,9.9038,3005.2,3004.4,0.001]
[1766313603578,10.89418,3005.2,3004.4,0.001]
[1766313604494,9.9038,3005.1,3004.4,0.001]
[1766313605159,13.23151962,3005.1,3004.4,0.001]
[1766313606085,9.9038,3005.1,3004.4,0.001]
[1766313607266,1.42238,3005.2,3004.4,0.001]
[1766313607965,0.432,3005.2,3004.4,0.001]
[1766313609106,0.432,3005.2,3004.5,0.001]
[1766313609481,10.0686,3005.2,3004.5,0.001]
[1766313609981,13.39617481,3005.2,3004.5,0.001]
[1766313610188,10.0686,3005.2,3004.5,0.001]
[1766313610598,0.432,3005.2,3004.5,0.001]
[1766313616886,0.432,3005.2,3004.6,0.001]
[1766313621028,0.432,3005.4,3004.5,0.001]
[1766313621185,12.96539488,3005.9,3004.5,0.001]
[1766313621387,0.432,3005.8,3004.5,0.0342834]
[1766313621582,0.432,3005.8,3004.5,0.001]
[1766313622426,2.3715,3005.7,3004.5,0.001]
[1766313622737,9.6366,3005.7,3004.5,0.001]
[1766313623411,3.32705975,3005.7,3004.5,0.001]
[1766313623620,0.432,3005.7,3004.5,0.001]
[1766313625321,0.434,3005.7,3004.5,0.001]
[1766313626415,0.002,3005.7,3004.5,0.001]
[1766313630821,0.002,3005.7,3004.6,0.433]
[1766313631113,0.002,3005.7,3004.7,0.03328119]
[1766313631317,0.002,3005.7,3004.6,0.433]
[1766313631508,0.002,3005.7,3004.8,4.13808907]
[1766313631707,0.002,3005.7,3004.9,0.41380891]
[1766313635338,0.002,3005.7,3004.6,0.433]
[1766313636518,9.9366,3005.7,3004.7,0.433]
[1766313637008,3.3271227,3005.6,3004.7,0.433]
[1766313637534,13.2617227,3005.6,3004.7,0.433]
[1766313638305,14.963987,3005.6,3004.7,0.433]
[1766313638837,11.6368643,3005.6,3004.7,0.433]
[1766313642052,14.96399042,3005.6,3004.7,0.433]
[1766313642656,11.6368643,3005.6,3004.7,0.433]
[1766313646643,12.0688643,3005.6,3004.7,0.433]
[1766313646857,15.3960036,3005.6,3004.7,0.433]
[1766313647166,1.53980036,3005.5,3004.7,0.433]
[1766313647832,1.53980036,3005.5,3004.6,0.001]
[1766313648637,11.47440036,3005.5,3004.6,0.001]
[1766313649039,1.53980036,3005.5,3004.6,0.001]
[1766313649272,9.9346,3005.4,3004.6,0.001]
[1766313649784,14.07268907,3005.0,3004.5,0.001]
[1766313650908,7.4335,3004.8,3004.0,0.001]
[1766313651053,9.9346,3004.7,3004.0,0.001]
[1766313651248,7.46588947,3005.0,3004.0,0.001]
[1766313651478,9.9346,3004.8,3004.0,0.001]
[1766313652349,2.9331,3004.7,3004.0,0.001]
[1766313652557,9.9346,3004.6,3004.0,0.001]
[1766313653251,9.9346,3004.5,3004.0,0.001]
[1766313658001,4.14284374,3004.4,3004.0,0.001]
[1766313658166,5.8834124,3004.4,3004.0,0.001]
[1766313658680,9.9346,3004.1,3003.5,0.001]
[1766313658905,14.07744374,3004.0,3003.5,0.001]
[1766313659751,4.14284374,3003.6,3003.3,0.001]
[1766313659981,14.07744374,3003.6,3003.3,0.001]
[1766313660164,14.07744374,3003.6,3003.2,0.001]
[1766313660165,4.14284374,3003.4,3003.1,0.001]
[1766313660953,4.14284374,3003.4,3002.8,0.001]
[1766313661280,14.07744374,3003.2,3002.8,0.001]
[1766313661451,4.14284374,3003.0,3002.6,0.001]
[1766313661652,14.07744374,3003.2,3002.6,0.001]
[1766313661846,15.81814483,3003.2,3002.6,0.001]
[1766313662783,1.40774437,3003.5,3002.6,0.001]
[1766313663084,0.432,3003.4,3002.6,0.001]
[1766313663797,10.3666,3003.4,3002.6,0.001]
[1766313664170,14.50944374,3003.4,3002.6,0.001]
[1766313664364,4.14284374,3003.0,3002.6,0.001]
[1766313664899,9.9346,3003.1,3002.6,0.001]
[1766313665930,11.67531621,3003.1,3002.6,0.001]
[1766313666514,1.74071621,3003.1,3002.6,0.001]
[1766313666718,4.14284374,3003.2,3002.6,0.001]
[1766313668696,4.14284374,3003.0,3002.6,0.001]
[1766313669657,14.36014374,3002.7,3002.2,0.001]
[1766313670187,0.0248794,3002.6,3002.2,0.001]
[1766313671048,4.14284374,3002.5,3002.2,0.001]
[1766313671243,4.14284374,3002.5,3001.9,0.002]
[1766313671545,4.14284374,3002.3,3001.9,0.002]
[1766313671947,4.14284374,3002.3,3001.9,0.001]
[1766313672245,4.14284374,3002.1,3001.5,0.001]
[1766313672424,14.36014374,3002.1,3001.5,0.001]
[1766313673275,4.14284374,3001.9,3001.5,0.001]
[1766313674033,10.2173,3002.0,3001.5,0.001]
[1766313674442,4.14284374,3002.3,3001.6,0.001]
[1766313674642,15.80786031,3002.3,3001.6,0.001]
[1766313674812,0.433,3002.2,3001.6,0.001]
[1766313677248,10.3507639,3002.8,3001.6,0.001]
[1766313677556,18.12354734,3002.7,3001.6,0.001]
[1766313677731,7.90624734,3002.7,3001.6,0.001]
[1766313677930,10.2173,3002.6,3001.6,0.001]
[1766313678131,12.36267725,3002.6,3001.6,0.001]
[1766313678328,4.14284374,3002.5,3001.6,0.001]
[1766313678546,14.36014374,3002.5,3001.6,0.001]
[1766313679250,10.2173,3002.5,3001.6,0.001]
[1766313679548,0.433,3002.4,3001.6,0.001]
[1766313680534,3.33198021,3003.1,3002.0,0.001]
[1766313680843,14.79314374,3003.0,3002.2,0.001]
[1766313681434,0.433,3003.0,3002.2,0.001]
[1766313686260,0.002,3003.1,3002.2,0.001]
[1766313686460,0.001,3003.1,3002.5,4.14284374]
[1766313686658,0.001,3003.1,3002.6,0.41428437]
[1766313686865,0.001,3003.1,3002.7,4.14284374]
[1766313687428,0.001,3003.1,3002.6,0.41428437]
[1766313687632,0.001,3003.1,3002.4,2.228]
[1766313688657,0.001,3003.1,3002.5,4.14284374]
[1766313689761,0.001,3003.1,3002.6,0.433]
[1766313705204,0.001,3003.1,3002.3,3.33075033]
[1766313705409,4.14499376,3002.9,3002.1,0.001]
[1766313705609,10.0846,3003.1,3002.2,0.433]
[1766313705610,10.0836,3003.0,3002.2,0.433]
[1766313706118,4.14499376,3002.9,3002.1,0.434]
[1766313706303,4.14499376,3002.9,3002.1,0.81051125]
[1766313706518,4.14499376,3002.7,3002.1,0.001]
[1766313706815,4.14499376,3002.7,3002.5,0.001]
[1766313707181,14.22859376,3002.9,3002.5,0.001]
[1766313707385,10.0836,3002.9,3002.5,0.001]
[1766313707575,10.0836,3002.7,3002.5,0.001]
[1766313708508,10.0836,3002.6,3002.1,0.001]
[1766313708716,4.14499376,3002.7,3002.1,0.001]
[1766313709384,11.09196,3002.8,3002.1,0.001]
[1766313709585,15.23695376,3002.8,3002.1,0.001]
[1766313709787,1.52369538,3002.7,3002.1,0.001]
[1766313711115,4.14499376,3002.2,3002.1,0.001]
[1766313711314,4.14499376,3002.2,3001.5,0.434]
[1766313711713,4.14499376,3002.4,3001.5,0.434]
[1766313711914,4.14499376,3002.4,3001.5,0.001]
[1766313711915,14.22859376,3002.4,3001.5,0.001]
[1766313712216,4.14499376,3002.2,3001.5,0.001]
[1766313712515,11.50645938,3002.3,3001.5,0.001]
[1766313712726,15.65145314,3002.3,3001.5,0.001]
[1766313713017,15.65145314,3002.3,3002.0,0.001]
[1766313713212,11.50645938,3002.3,3002.0,0.001]
[1766313714324,1.42285938,3002.3,3002.0,0.001]
[1766313714619,4.14499376,3002.4,3002.0,0.001]
[1766313716330,10.0836,3002.5,3002.0,0.001]
[1766313716529,14.22859376,3002.5,3002.0,0.001]
[1766313718626,10.0836,3002.4,3002.0,0.001]
[1766313718827,4.14499376,3002.5,3002.0,0.001]
[1766313719033,0.41449938,3002.4,3002.0,0.001]
[1766313720433,10.0836,3002.6,3002.0,0.001]
[1766313721133,4.14877772,3002.5,3002.0,0.001]